fUSD/lending_fUSD_20250820
["ID","MTS","AMOUNT","RATE_DAILY","PERIOD"]
[380363904,1755704398855,-940.82,0.00030958,120]
[380363905,1755704398910,-1262.34,0.00030958,120]
[380363906,1755704398959,-400.0,0.00030958,120]
[380363907,1755704399010,-400.0,0.00030958,120]
[380363908,1755704399065,-1139.74,0.00030958,120]
[380363909,1755704399124,-575.92,0.00030958,120]
[380363910,1755704399187,-4460.21,0.00030958,120]
[380363911,1755704399246,-1574.38,0.00030958,120]
[380363912,1755704399313,-982.5,0.00030958,120]
[380363913,1755704399379,-3483.7,0.00030958,120]
[380363914,1755704399443,-1036.67,0.00030958,120]
[380363915,1755704399506,-562.95,0.00030958,120]
[380363916,1755704399571,-400.0,0.00030958,120]
[380363917,1755704399633,-970.03,0.00030958,120]
[380363918,1755704399697,-1093.59,0.00030958,120]
[380363919,1755704399755,-4249.94,0.00030958,120]
[380363920,1755704399820,-1014.35,0.00030958,120]
[380363921,1755704399875,-1546.42,0.00030958,120]
[380363922,1755704399934,-1629.64,0.00030958,120]
[380363923,1755704399994,-989.51,0.00030958,120]
[380363924,1755704400057,-400.0,0.00030958,120]
[380363925,1755704400133,-1482.65,0.00030958,120]
[380363926,1755704400204,-2012.8,0.00030958,120]
[380363927,1755704400273,-1533.81,0.00030958,120]
[380363928,1755704400338,-979.71,0.00030958,120]
[380363929,1755704400587,-1282.97,0.00030958,120]
[380363930,1755704400651,-1051.53,0.00030958,120]
[380363931,1755704400714,-1163.9,0.00030958,120]
[380363932,1755704400773,-1009.21,0.00030958,120]
[380363933,1755704400839,-1255.85,0.00030958,120]
[380363934,1755704400900,-498.48,0.00030958,120]
[380363935,1755704400959,-788.47,0.00030958,120]
[380363936,1755704401021,-1106.04,0.00030958,120]
[380363937,1755704401081,-400.0,0.00030958,120]
[380363938,1755704401148,-1302.36,0.00030958,120]
[380363939,1755704401211,-1222.51,0.00030958,120]
[380363940,1755704401281,-582.37,0.00030958,120]
[380363941,1755704401362,-1567.19,0.00030958,120]
[380363942,1755704401446,-1204.77,0.00030958,120]
[380363943,1755704401510,-475.96,0.00030958,120]
[380363944,1755704401574,-1602.17,0.00030958,120]
[380363945,1755704401637,-611.81,0.00030958,120]
[380363946,1755704401703,-2299.2,0.00030958,120]
[380363947,1755704401766,-1767.0,0.00030958,120]
[380363948,1755704401833,-1731.78,0.00030958,120]
[380363949,1755704401896,-1416.62,0.00030958,120]
[380363950,1755704401963,-4682.8,0.00030958,120]
[380363951,1755704402043,-400.0,0.00030958,120]
[380363952,1755704402136,-1317.41,0.00030958,120]
[380363953,1755704402204,-400.0,0.00030958,120]
[380363954,1755704402276,-1072.63,0.00030958,120]
[380363955,1755704402343,-1559.05,0.00030958,120]
[380363956,1755704402411,-400.0,0.00030958,120]
[380363957,1755704402476,-517.09,0.00030958,120]
[380363958,1755704402542,-925.44,0.00030958,120]
[380363959,1755704402607,-400.0,0.00030958,120]
[380363960,1755704402675,-422.38,0.00030958,120]
[380363961,1755704402741,-751.9,0.00030958,120]
[380363962,1755704402810,-519.13,0.00030958,120]
[380363963,1755704402879,-400.0,0.00030958,120]
[380363964,1755704402948,-817.78,0.00030958,120]
[380363965,1755704403016,-400.0,0.00030958,120]
[380363966,1755704403096,-400.0,0.00030958,120]
[380363967,1755704403174,-400.0,0.00030958,120]
[380363968,1755704403252,-2085.12,0.00030958,120]
[380363969,1755704403328,-2111.46,0.00030958,120]
[380363970,1755704403405,-628.3,0.00030958,120]
[380363971,1755704403487,-882.78,0.00030958,120]
[380363972,1755704403561,-1129.24,0.00030958,120]
[380363973,1755704403640,-960.25,0.00030958,120]
[380363974,1755704403715,-3232.33,0.00030958,120]
[380363975,1755704403795,-400.0,0.00030958,120]
[380363976,1755704403873,-614.14,0.00030958,120]
[380363977,1755704403952,-451.16,0.00030958,120]
[380363978,1755704404034,-549.01,0.00030958,120]
[380363979,1755704404111,-400.0,0.00030958,120]
[380363980,1755704404191,-1416.3,0.00030958,120]
[380363981,1755704404269,-400.0,0.00030958,120]
[380363982,1755704404348,-497.52,0.00030958,120]
[380363983,1755704404424,-555.47,0.00030958,120]
[380363984,1755704404510,-955.54,0.00030958,120]
[380363985,1755704404599,-1494.98,0.00030958,120]
[380363986,1755704404675,-400.0,0.00030958,120]
[380363987,1755704404749,-400.0,0.00030958,120]
[380363988,1755704404824,-402.83454704,0.00030958,120]
[380363989,1755704404899,-814.06,0.00030958,120]
[380363990,1755704404972,-2152.92,0.00030958,120]
[380363991,1755704405063,-814.29,0.00030958,120]
[380363992,1755704405154,-503.92,0.00030958,120]
[380363993,1755704405252,-1932.34,0.00030958,120]
[380363994,1755704405332,-400.0,0.00030958,120]
[380363995,1755704405405,-1071.98,0.00030958,120]
[380363996,1755704405478,-1323.24,0.00030958,120]
[380363997,1755704405549,-893.37,0.00030958,120]
[380363998,1755704405623,-400.0,0.00030958,120]
[380363999,1755704405706,-672.41,0.00030958,120]
[380364000,1755704405781,-1382.27,0.00030958,120]
[380364001,1755704405851,-400.0,0.00030958,120]
[380364002,1755704405919,-400.0,0.00030958,120]
[380364003,1755704405984,-694.49,0.00030958,120]
[380364004,1755704406050,-400.0,0.00030958,120]
[380364005,1755704406127,-1271.7,0.00030958,120]
[380364006,1755704406201,-1330.74,0.00030958,120]
[380364007,1755704406271,-400.0,0.00030958,120]
[380364008,1755704406343,-689.59,0.00030958,120]
[380364009,1755704406417,-1172.55,0.00030958,120]
[380364010,1755704406488,-400.0,0.00030958,120]
[380364011,1755704406560,-2439.05,0.00030958,120]
[380364012,1755704406628,-1237.2,0.00030958,120]
[380364013,1755704406695,-1650.39,0.00030958,120]
[380364014,1755704406761,-1396.27,0.00030958,120]
[380364015,1755704406830,-1114.08,0.00030958,120]
[380364016,1755704406899,-498.23134086,0.00030958,120]
[380364017,1755704406970,-1755.63,0.00030958,120]
[380364018,1755704407038,-400.0,0.00030958,120]
[380364019,1755704407106,-877.19,0.00030958,120]
[380364020,1755704407175,-1635.14,0.00030958,120]
[380364021,1755704407259,-400.0,0.00030958,120]
[380364022,1755704407339,-400.0,0.00030958,120]
[380364023,1755704407414,-1408.79,0.00030958,120]
[380364024,1755704407500,-457.1,0.00030958,120]
[380364025,1755704407574,-3557.22,0.00030958,120]
[380364026,1755704407647,-1847.43,0.00030958,120]
[380364027,1755704407714,-630.81,0.00030958,120]
[380364028,1755704407780,-404.25,0.00030958,120]
[380364029,1755704407857,-1567.31,0.00030958,120]
[380364030,1755704407927,-400.0,0.00030958,120]
[380364031,1755704407996,-954.98,0.00030958,120]
[380364032,1755704408079,-1540.34,0.00030958,120]
[380364033,1755704408168,-592.5,0.00030958,120]
[380364034,1755704408250,-400.0,0.00030958,120]
[380364035,1755704408327,-897.43,0.00030958,120]
[380364036,1755704408397,-1864.26,0.00030958,120]
[380364037,1755704408467,-562.9,0.00030958,60]
[380364038,1755704408534,-767.51,0.00030958,120]
[380364039,1755704408603,-497.66,0.00030958,120]
[380364040,1755704408670,-1870.68,0.00030958,120]
[380364041,1755704408739,-517.44,0.00030958,120]
[380364042,1755704408808,-1314.84,0.00030958,120]
[380364043,1755704408882,-1579.83,0.00030958,120]
[380364044,1755704408954,-1292.5,0.00030958,120]
[380364045,1755704409023,-400.0,0.00030958,120]
[380364046,1755704409359,-400.0,0.00030958,120]
[380364047,1755704409432,-796.95,0.00030958,120]
[380364048,1755704409504,-497.22,0.00030958,120]
[380364049,1755704409577,-1203.29,0.00030958,120]
[380364050,1755704409650,-1478.7,0.00030958,120]
[380364051,1755704409723,-1000.93,0.00030958,120]
[380364052,1755704409795,-1612.97,0.00030958,120]
[380364053,1755704409870,-400.0,0.00030958,120]
[380364054,1755704409943,-1471.46,0.00030958,120]
[380364055,1755704410022,-400.0,0.00030958,120]
[380364056,1755704410108,-513.78,0.00030958,120]
[380364057,1755704410181,-400.0,0.00030958,120]
[380364058,1755704410255,-741.27,0.00030958,120]
[380364059,1755704410329,-1015.74,0.00030958,120]
[380364060,1755704410402,-400.0,0.00030958,120]
[380364061,1755704410475,-1708.33,0.00030958,120]
[380364062,1755704410546,-737.98,0.00030958,120]
[380364063,1755704410619,-3349.39,0.00030958,120]
[380364064,1755704410688,-400.0,0.00030958,120]
[380364065,1755704410757,-1054.95,0.00030958,120]
[380364066,1755704410829,-2591.8,0.00030958,120]
[380364067,1755704410899,-1253.87,0.00030958,120]
[380364068,1755704410968,-1272.44,0.00030958,120]
[380364069,1755704411039,-1199.18,0.00030958,120]
[380364070,1755704411115,-400.0,0.00030958,120]
[380364071,1755704411199,-476.88,0.00030958,120]
[380364072,1755704411288,-1905.84,0.00030958,120]
[380364073,1755704411361,-400.0,0.00030958,120]
[380364074,1755704411430,-1265.57,0.00030958,120]
[380364075,1755704411505,-1020.67,0.00030958,120]
[380364076,1755704411575,-542.94,0.00030958,120]
[380364077,1755704411643,-1177.32,0.00030958,120]
[380364078,1755704411718,-257.45419566,0.00030958,120]
[380364079,1755704411785,-1695.54,0.00030958,120]
[380364080,1755704411853,-1546.01,0.00030958,120]
[380364081,1755704411920,-400.0,0.00030958,120]
[380364082,1755704411989,-942.87,0.00030958,120]
[380364083,1755704412063,-617.27,0.00030958,120]
[380364084,1755704412139,-1377.85,0.00030958,120]
[380364085,1755704412217,-400.0,0.00030958,120]
[380364086,1755704412295,-1478.94,0.00030958,120]
[380364087,1755704412365,-400.0,0.00030958,120]
[380364088,1755704412437,-400.0,0.00030958,120]
[380364089,1755704412508,-2891.27,0.00030958,120]
[380364090,1755704412580,-1696.74,0.00030958,120]
[380364091,1755704412657,-154.29,0.0003099,120]
[380364092,1755704412738,-1000.0,0.00031,120]
[380364093,1755704412841,-179.69,0.00031232,120]
[380364094,1755704412917,-400.0,0.00031232,120]
[380364095,1755704412990,-400.0,0.00031232,120]
[380364096,1755704413086,-400.0,0.00031232,120]
[380364097,1755704413159,-400.0,0.00031232,120]
[380364098,1755704413234,-400.0,0.00031232,120]
[380364099,1755704413307,-400.0,0.00031232,120]
[380364100,1755704413382,-400.0,0.00031232,120]
[380364101,1755704413456,-400.0,0.00031232,120]
[380364102,1755704413534,-400.0,0.00031232,120]
[380364103,1755704413609,-400.0,0.00031232,120]
[380364104,1755704413684,-400.0,0.00031232,120]
[380364105,1755704413758,-400.0,0.00031232,120]
[380364106,1755704413833,-160.67508944,0.00031232,120]
[380364107,1755704413914,-400.0,0.00031232,120]
[380364108,1755704413987,-400.0,0.00031232,120]
[380364109,1755704414066,-400.0,0.00031232,120]
[380364110,1755704414146,-279.97092316,0.00031232,120]
[380364111,1755704414220,-400.0,0.00031232,120]
[380364112,1755704414294,-400.0,0.00031232,120]
[380364113,1755704414370,-358.50604015,0.00031232,120]
[380364114,1755704414443,-400.0,0.00031232,120]
[380364115,1755704414518,-718.51,0.00031232,120]
[380364116,1755704414591,-400.0,0.00031232,120]
[380364117,1755704414663,-409.17,0.00031232,120]
[380364118,1755704414736,-400.0,0.00031232,120]
[380364119,1755704414808,-400.0,0.00031232,120]
[380364120,1755704414882,-764.68,0.00031232,120]
[380364121,1755704414954,-1304.1,0.00031232,120]
[380364122,1755704415027,-400.0,0.00031232,120]
[380364123,1755704415098,-1156.68,0.00031232,120]
[380364124,1755704415171,-856.6,0.00031232,120]
[380364125,1755704415241,-830.27,0.00031232,120]
[380364126,1755704415318,-400.0,0.00031232,120]
[380364127,1755704415396,-1221.68,0.00031232,120]
[380364128,1755704415470,-257.09542101,0.00031232,120]
[380364129,1755704415543,-736.77,0.00031232,120]
[380364130,1755704415616,-400.0,0.00031232,120]
[380364131,1755704415688,-400.0,0.00031232,120]
[380364132,1755704415755,-400.0,0.00031232,120]
[380364133,1755704415827,-1319.89,0.00031232,120]
[380364134,1755704415899,-429.34,0.00031232,120]
[380364135,1755704415971,-1260.04,0.00031232,120]
[380364136,1755704416044,-1210.02,0.00031232,120]
[380364137,1755704416120,-400.0,0.00031232,120]
[380364138,1755704416195,-400.0,0.00031232,120]
[380364139,1755704416268,-400.0,0.00031232,120]
[380364140,1755704416883,-444.48,0.00031232,120]
[380364141,1755704416967,-1381.73,0.00031232,120]
[380364142,1755704417037,-501.14,0.00031232,120]
[380364143,1755704417106,-1258.97,0.00031232,120]
[380364144,1755704417179,-400.0,0.00031232,120]
[380364145,1755704417250,-1368.59,0.00031232,120]
[380364146,1755704417323,-1036.36,0.00031232,120]
[380364147,1755704417393,-907.35,0.00031232,120]
[380364148,1755704417467,-400.0,0.00031232,120]
[380364149,1755704417534,-440.34,0.00031232,120]
[380364150,1755704417603,-802.81,0.00031232,120]
[380364151,1755704417672,-400.0,0.00031232,120]
[380364152,1755704417754,-400.0,0.00031232,120]
[380364153,1755704417824,-400.0,0.00031232,120]
[380364154,1755704417893,-304.27157835,0.00031232,90]
[380364155,1755704417969,-838.13,0.00031232,120]
[380364156,1755704418035,-400.0,0.00031232,120]
[380364157,1755704418102,-1042.39,0.00031232,120]
[380364158,1755704418184,-1198.19,0.00031232,120]
[380364159,1755704418263,-461.84,0.00031232,120]
[380364160,1755704418333,-400.0,0.00031232,120]
[380364161,1755704418402,-400.0,0.00031232,120]
[380364162,1755704418470,-453.74,0.00031232,120]
[380364163,1755704418538,-445.48,0.00031232,120]
[380364164,1755704418608,-400.0,0.00031232,120]
[380364165,1755704418676,-400.0,0.00031232,120]
[380364166,1755704418746,-1126.38,0.00031232,120]
[380364167,1755704418816,-400.0,0.00031232,120]
[380364168,1755704418890,-400.0,0.00031232,120]
[380364169,1755704418965,-420.47,0.00031232,120]
[380364170,1755704419045,-400.0,0.00031232,120]
[380364171,1755704419131,-400.0,0.00031232,120]
[380364172,1755704419205,-1112.16,0.00031232,120]
[380364173,1755704419277,-400.0,0.00031232,120]
[380364174,1755704419351,-1031.31,0.00031232,120]
[380364175,1755704419425,-400.0,0.00031232,120]
[380364176,1755704419496,-400.0,0.00031232,120]
[380364177,1755704419564,-716.98,0.00031232,120]
[380364178,1755704419633,-400.0,0.00031232,120]
[380364179,1755704419698,-400.0,0.00031232,120]
[380364180,1755704419769,-400.0,0.00031232,120]
[380364181,1755704419834,-1006.75,0.00031232,120]
[380364182,1755704419898,-1527.1,0.00031232,120]
[380364183,1755704419962,-496.67,0.00031232,120]
[380364184,1755704420030,-1248.22,0.00031232,120]
[380364185,1755704420097,-400.0,0.00031232,120]
[380364186,1755704420179,-400.0,0.00031232,120]
[380364187,1755704420250,-400.0,0.00031232,120]
[380364188,1755704420322,-667.85,0.00031232,120]
[380364189,1755704420392,-400.0,0.00031232,120]
[380364190,1755704420460,-813.99,0.00031232,120]
[380364191,1755704420527,-400.0,0.00031232,120]
[380364192,1755704420597,-934.42,0.00031232,120]
[380364193,1755704420664,-400.0,0.00031232,120]
[380364194,1755704420732,-1363.06,0.00031232,120]
[380364195,1755704420799,-400.0,0.00031232,120]
[380364196,1755704420866,-400.0,0.00031232,120]
[380364197,1755704420933,-400.0,0.00031232,120]
[380364198,1755704421000,-401.53,0.00031232,120]
[380364199,1755704421086,-1260.09,0.00031232,120]
[380364200,1755704421160,-850.0,0.00031232,120]
[380364201,1755704421233,-400.0,0.00031232,120]
[380364202,1755704421308,-400.0,0.00031232,120]
[380364203,1755704421383,-400.0,0.00031232,120]
[380364204,1755704421453,-400.0,0.00031232,120]
[380364205,1755704421522,-400.0,0.00031232,120]
[380364206,1755704421591,-400.0,0.00031232,120]
[380364207,1755704421664,-836.95,0.00031232,120]
[380364208,1755704421732,-400.0,0.00031232,120]
[380364209,1755704421799,-1116.84,0.00031232,120]
[380364210,1755704421867,-414.7,0.00031232,120]
[380364211,1755704421938,-1147.15,0.00031232,120]
[380364212,1755704422005,-400.0,0.00031232,120]
[380364213,1755704422073,-400.0,0.00031232,120]
[380364214,1755704422142,-400.0,0.00031232,120]
[380364215,1755704422209,-743.12,0.00031232,120]
[380364216,1755704422275,-636.3,0.00031232,120]
[380364217,1755704422351,-400.0,0.00031232,120]
[380364218,1755704422651,-400.0,0.00031232,120]
[380364219,1755704422720,-568.88,0.00031232,120]
[380364220,1755704422785,-1024.76,0.00031232,120]
[380364221,1755704422852,-1060.06,0.00031232,120]
[380364222,1755704422924,-490.34,0.00031232,120]
[380364223,1755704422992,-1190.88,0.00031232,120]
[380364224,1755704423059,-400.0,0.00031232,120]
[380364225,1755704423132,-676.12,0.00031232,120]
[380364226,1755704423202,-660.42,0.00031232,120]
[380364227,1755704423271,-400.0,0.00031232,120]
[380364228,1755704423344,-400.0,0.00031232,120]
[380364229,1755704423415,-1161.56,0.00031232,120]
[380364230,1755704423488,-545.33,0.00031232,120]
[380364231,1755704423560,-400.0,0.00031232,120]
[380364232,1755704423632,-400.0,0.00031232,120]
[380364233,1755704423704,-610.37,0.00031232,120]
[380364234,1755704423773,-477.42,0.00031232,120]
[380364235,1755704423846,-400.0,0.00031232,120]
[380364236,1755704423928,-224.64,0.00031232,120]
[380364237,1755704424000,-739.93,0.00031232,120]
[380364238,1755704424073,-400.0,0.00031232,120]
[380364239,1755704424147,-400.0,0.00031232,120]
[380364240,1755704424216,-948.0,0.00031232,120]
[380364241,1755704424287,-400.0,0.00031232,120]
[380364242,1755704424366,-1022.6,0.00031232,120]
[380364243,1755704424448,-400.0,0.00031232,120]
[380364244,1755704424519,-562.61,0.00031232,120]
[380364245,1755704424588,-1417.89,0.00031232,120]
[380364246,1755704424658,-706.16,0.00031232,120]
[380364247,1755704424731,-400.0,0.00031232,120]
[380364248,1755704424805,-400.0,0.00031232,120]
[380364249,1755704424888,-413.98,0.00031232,120]
[380364250,1755704424969,-400.0,0.00031232,120]
[380364251,1755704425043,-505.76,0.00031232,120]
[380364252,1755704425113,-536.4,0.00031232,120]
[380364253,1755704425184,-1118.73,0.00031232,120]
[380364254,1755704425255,-946.77,0.00031232,120]
[380364255,1755704425326,-1466.46,0.00031232,120]
[380364256,1755704425397,-400.0,0.00031232,120]
[380364257,1755704425468,-1782.22,0.00031232,120]
[380364258,1755704425538,-827.07,0.00031232,120]
[380364259,1755704425609,-400.0,0.00031232,120]
[380364260,1755704425678,-793.29,0.00031232,120]
[380364261,1755704425752,-400.0,0.00031232,120]
[380364262,1755704425835,-400.0,0.00031232,120]
[380364263,1755704425917,-1350.43,0.00031232,120]
[380364264,1755704425984,-400.0,0.00031232,120]
[380364265,1755704426050,-400.0,0.00031232,120]
[380364266,1755704426118,-1208.94,0.00031232,120]
[380364267,1755704426183,-852.64,0.00031232,120]
[380364268,1755704426250,-400.0,0.00031232,120]
[380364269,1755704426319,-400.0,0.00031232,120]
[380364270,1755704426388,-1073.43,0.00031232,120]
[380364271,1755704426458,-1507.29,0.00031232,120]
[380364272,1755704426526,-400.0,0.00031232,120]
[380364273,1755704426595,-745.21,0.00031232,120]
[380364274,1755704426663,-400.0,0.00031232,120]
[380364275,1755704426732,-1371.84,0.00031232,120]
[380364276,1755704426802,-1221.95,0.00031232,120]
[380364277,1755704426870,-586.7,0.00031232,120]
[380364278,1755704426940,-1285.78,0.00031232,120]
[380364279,1755704427009,-400.0,0.00031232,120]
[380364280,1755704427083,-972.59,0.00031232,120]
[380364281,1755704427154,-711.84,0.00031232,120]
[380364282,1755704427229,-844.74,0.00031232,120]
[380364283,1755704427299,-587.89,0.00031232,120]
[380364284,1755704427380,-853.26,0.00031232,120]
[380364285,1755704427449,-859.97,0.00031232,120]
[380364286,1755704427537,-733.34,0.00031232,120]
[380364287,1755704427609,-400.0,0.00031232,120]
[380364288,1755704427679,-283.46981375,0.00031232,120]
[380364289,1755704427743,-827.37,0.00031232,120]
[380364290,1755704427806,-1067.86,0.00031232,120]
[380364291,1755704427871,-729.4,0.00031232,120]
[380364292,1755704427934,-418.57,0.00031232,120]
[380364293,1755704427997,-850.72,0.00031232,120]
[380364294,1755704428075,-400.0,0.00031232,120]
[380364295,1755704428158,-818.25,0.00031232,120]
[380364296,1755704428228,-565.64,0.00031232,120]
[380364297,1755704428298,-1293.57,0.00031232,120]
[380364298,1755704428365,-400.0,0.00031232,120]
[380364299,1755704428432,-400.0,0.00031232,120]
[380364300,1755704428497,-1218.32,0.00031232,120]
[380364301,1755704428564,-277.98555909,0.00031232,120]
[380364302,1755704428630,-400.0,0.00031232,120]
[380364303,1755704428711,-400.0,0.00031232,120]
[380364304,1755704428777,-1000.0,0.00031232,120]
[380364305,1755704428855,-1177.92,0.00031232,120]
[380364306,1755704428924,-638.15,0.00031232,120]
[380364307,1755704428992,-400.0,0.00031232,120]
[380364308,1755704429060,-481.16,0.00031232,120]
[380364309,1755704429146,-962.08,0.00031232,120]
[380364310,1755704429217,-837.36,0.00031232,120]
[380364311,1755704429289,-1553.61,0.00031232,120]
[380364312,1755704429360,-820.35,0.00031232,120]
[380364313,1755704429431,-400.0,0.00031232,120]
[380364314,1755704429503,-662.65,0.00031232,120]
[380364315,1755704429573,-1177.78,0.00031232,120]
[380364316,1755704429644,-400.0,0.00031232,120]
[380364317,1755704429712,-428.08,0.00031232,120]
[380364318,1755704429779,-400.0,0.00031232,120]
[380364319,1755704429844,-400.0,0.00031232,120]
[380364320,1755704429910,-400.0,0.00031232,120]
[380364321,1755704429975,-553.6,0.00031232,120]
[380364322,1755704430042,-400.0,0.00031232,120]
[380364323,1755704430105,-796.47,0.00031232,120]
[380364324,1755704430174,-400.0,0.00031232,120]
[380364325,1755704430240,-735.34,0.00031232,120]
[380364326,1755704430307,-387.16623053,0.00031232,120]
[380364327,1755704430375,-942.7,0.00031232,120]
[380364328,1755704430442,-400.0,0.00031232,120]
[380364329,1755704430511,-400.0,0.00031232,120]
[380364330,1755704430576,-827.62,0.00031232,120]
[380364331,1755704430642,-1047.27,0.00031232,120]
[380364332,1755704430705,-400.0,0.00031232,120]
[380364333,1755704430769,-400.0,0.00031232,120]
[380364334,1755704430831,-400.0,0.00031232,120]
[380364335,1755704431210,-400.0,0.00031232,120]
[380364336,1755704431281,-1298.08,0.00031232,120]
[380364337,1755704431354,-877.14,0.00031232,120]
[380364338,1755704431428,-1143.69,0.00031232,120]
[380364339,1755704431505,-400.0,0.00031232,120]
[380364340,1755704431583,-400.0,0.00031232,120]
[380364341,1755704431656,-400.0,0.00031232,120]
[380364342,1755704431727,-802.12,0.00031232,120]
[380364343,1755704431797,-400.0,0.00031232,120]
[380364344,1755704431868,-1857.1,0.00031232,120]
[380364345,1755704431937,-400.0,0.00031232,120]
[380364346,1755704432006,-400.0,0.00031232,120]
[380364347,1755704432078,-400.0,0.00031232,120]
[380364348,1755704432151,-400.0,0.00031232,120]
[380364349,1755704432219,-691.73,0.00031232,120]
[380364350,1755704432286,-821.46,0.00031232,120]
[380364351,1755704432353,-663.97,0.00031232,120]
[380364352,1755704432421,-400.0,0.00031232,120]
[380364353,1755704432487,-992.3,0.00031232,120]
[380364354,1755704432552,-1745.01,0.00031232,120]
[380364355,1755704432616,-400.0,0.00031232,120]
[380364356,1755704432680,-1538.17,0.00031232,120]
[380364357,1755704432749,-715.94,0.00031232,120]
[380364358,1755704432814,-400.0,0.00031232,120]
[380364359,1755704432880,-400.0,0.00031232,120]
[380364360,1755704432946,-489.12,0.00031232,120]
[380364361,1755704433010,-400.0,0.00031232,120]
[380364362,1755704433085,-569.35,0.00031232,120]
[380364363,1755704433165,-930.49,0.00031232,120]
[380364364,1755704433243,-1441.9,0.00031232,120]
[380364365,1755704433315,-489.62,0.00031232,120]
[380364366,1755704433387,-400.0,0.00031232,120]
[380364367,1755704433462,-771.46,0.00031232,120]
[380364368,1755704433536,-689.22,0.00031232,120]
[380364369,1755704433607,-765.56,0.00031232,120]
[380364370,1755704433681,-400.0,0.00031232,120]
[380364371,1755704433753,-400.0,0.00031232,120]
[380364372,1755704433829,-400.0,0.00031232,120]
[380364373,1755704433905,-636.48,0.00031232,120]
[380364374,1755704433979,-642.67,0.00031232,120]
[380364375,1755704434053,-400.0,0.00031232,120]
[380364376,1755704434126,-1329.88,0.00031232,120]
[380364377,1755704434200,-707.72,0.00031232,120]
[380364378,1755704434272,-458.69,0.00031232,120]
[380364379,1755704434345,-947.76,0.00031232,120]
[380364380,1755704434416,-400.0,0.00031232,120]
[380364381,1755704434491,-400.0,0.00031232,120]
[380364382,1755704434564,-400.0,0.00031232,120]
[380364383,1755704434635,-947.19,0.00031232,120]
[380364384,1755704434706,-1105.82,0.00031232,120]
[380364385,1755704434774,-400.0,0.00031232,120]
[380364386,1755704434843,-417.42,0.00031232,120]
[380364387,1755704434910,-1921.22,0.00031232,120]
[380364388,1755704434980,-744.46,0.00031232,120]
[380364389,1755704435048,-400.0,0.00031232,120]
[380364390,1755704435117,-400.0,0.00031232,120]
[380364391,1755704435187,-544.14,0.00031232,120]
[380364392,1755704435258,-400.0,0.00031232,120]
[380364393,1755704435340,-400.0,0.00031232,120]
[380364394,1755704435414,-625.19,0.00031232,120]
[380364395,1755704435491,-826.39,0.00031232,120]
[380364396,1755704435562,-1083.72,0.00031232,120]
[380364397,1755704435634,-958.45,0.00031232,120]
[380364398,1755704435706,-893.19,0.00031232,120]
[380364399,1755704435776,-400.0,0.00031232,120]
[380364400,1755704435849,-822.15,0.00031232,120]
[380364401,1755704435923,-636.12,0.00031232,120]
[380364402,1755704435995,-416.29,0.00031232,120]
[380364403,1755704436069,-400.0,0.00031232,120]